bitfinex/quotes_ETHUSD_20240822
["timestamp","ask_amount","ask_price","bid_price","bid_amount"]
[1724305322983,7.10159999,2625.4,2625.3,0.00412983]
[1724305324254,5.2825,2625.3,2625.2,0.028]
[1724305324452,7.07916796,2625.3,2625.2,0.028]
[1724305324654,7.23857201,2625.3,2625.2,0.028]
[1724305326765,6.44203502,2625.3,2625.2,3.83723]
[1724305327279,7.23857201,2625.3,2625.2,3.83723]
[1724305327446,6.44203502,2625.3,2625.2,3.83723]
[1724305328072,7.23857201,2625.3,2625.2,3.83723]
[1724305330271,7.23857201,2625.3,2625.2,0.028]
[1724305330475,7.82272125,2625.3,2625.2,0.028]
[1724305330653,17.03659099,2625.3,2625.2,0.028]
[1724305330848,15.44088125,2625.3,2625.2,0.028]
[1724305331046,18.44088125,2625.3,2625.2,0.028]
[1724305331474,18.36419502,2625.3,2625.2,0.028]
[1724305333646,20.75276608,2625.3,2625.2,0.028]
[1724305334088,18.36419502,2625.3,2625.2,0.028]
[1724305334288,20.74966915,2625.3,2625.2,0.028]
[1724305335947,18.36419502,2625.3,2625.2,0.028]
[1724305337140,5.0219,2624.7,2624.2,3.8106]
[1724305337306,5.3454,2624.5,2624.2,3.8106]
[1724305337637,0.15858444,2624.4,2624.2,3.8106]
[1724305339342,0.15858444,2624.4,2624.3,3.81053]
[1724305340447,5.69468444,2624.4,2624.1,7.62137]
[1724305340643,5.61278623,2624.3,2624.2,3.81068]
[1724305340810,6.33827857,2624.3,2624.1,7.62142]
[1724305341242,6.33827857,2624.3,2624.2,3.81068]
[1724305342076,6.33827857,2624.3,2624.0,3.81088]
[1724305342252,5.4267,2624.1,2623.9,3.81101]
[1724305342545,5.4267,2624.1,2623.8,3.81124]
[1724305343054,5.2427,2623.9,2623.8,3.81124]
[1724305343518,5.40051803,2623.9,2623.8,7.6225]
[1724305343719,0.15781803,2623.9,2623.8,12.73776]
[1724305344121,5.4906,2624.3,2624.2,7.62136]
[1724305346121,5.1955,2624.8,2624.6,3.81009]
[1724305346632,5.1955,2624.8,2624.5,3.81022]
[1724305349670,5.1955,2624.8,2624.3,3.81046]
[1724305349671,9.00538,2624.8,2624.3,3.81046]
[1724305349967,6.27253495,2624.7,2624.3,3.81046]
[1724305351245,6.27253495,2624.7,2624.4,3.81036]
[1724305352779,0.15820485,2624.6,2624.4,3.81036]
[1724305353563,5.3448,2624.5,2624.4,3.81036]
[1724305353908,5.50298241,2624.5,2624.4,3.81036]
[1724305359682,5.50298241,2624.5,2624.4,7.62075]
[1724305359996,5.50298241,2624.5,2624.4,11.43114]
[1724305360357,5.50298241,2624.5,2624.4,7.62075]
[1724305361086,5.50298241,2624.5,2624.4,3.81036]
[1724305367402,5.50298241,2624.5,2624.4,7.62075]
[1724305367576,5.50298241,2624.5,2624.4,3.81036]
[1724305368501,5.50298241,2624.5,2624.4,7.62075]
[1724305368663,5.50298241,2624.5,2624.4,3.81036]
[1724305369583,5.50298241,2624.5,2624.4,7.62075]
[1724305372405,5.50298241,2624.5,2624.4,3.81036]
[1724305372601,6.1724776,2624.5,2624.4,3.81036]
[1724305373786,6.1724776,2624.5,2624.4,7.62075]
[1724305374090,5.50298241,2624.5,2624.4,7.62075]
[1724305374291,6.69495186,2624.5,2624.4,3.81036]
[1724305374993,5.2129,2624.4,2624.1,3.81075]
[1724305375303,6.40486945,2624.3,2624.2,3.81059]
[1724305375502,6.55784288,2624.3,2624.2,3.81059]
[1724305376290,5.36587343,2624.3,2624.2,3.81059]
[1724305376738,6.95516603,2624.3,2624.2,3.81059]
[1724305377271,6.56227407,2624.3,2624.2,3.81059]
[1724305378049,8.06390042,2624.3,2624.2,3.81059]
[1724305378253,4.8752,2624.2,2624.0,3.81095]
[1724305378397,1.19648075,2624.1,2624.0,3.81095]
[1724305378602,6.25208696,2624.1,2624.0,3.81095]
[1724305379603,5.05560621,2624.1,2624.0,7.9796435]
[1724305380811,6.25208696,2624.1,2624.0,7.9796435]
[1724305381134,5.05560621,2624.1,2624.0,7.97963911]
[1724305381911,6.25208696,2624.1,2624.0,7.62192]
[1724305382212,7.03682642,2624.1,2624.0,3.81095]
[1724305382542,6.25208696,2624.1,2624.0,7.62192]
[1724305382739,5.05560621,2624.1,2624.0,7.62192]
[1724305382922,6.25208696,2624.1,2624.0,7.62192]
[1724305383824,5.05560621,2624.1,2624.0,7.62192]
[1724305385053,5.05560621,2624.1,2624.0,7.97963611]
[1724305385812,5.05560621,2624.1,2624.0,7.62192]
[1724305386656,5.05560621,2624.1,2624.0,7.97963458]
[1724305387050,0.15280621,2624.1,2624.0,11.79060458]
[1724305387217,4.8975,2624.3,2624.2,7.62136]
[1724305388426,6.09398075,2624.3,2624.2,7.62136]
[1724305390816,6.09398075,2624.3,2624.2,7.97904366]
[1724305391017,4.8975,2624.3,2624.2,7.97904366]
[1724305396086,4.8975,2624.3,2624.2,7.62136]
[1724305396401,4.8975,2624.3,2624.2,7.97904875]
[1724305397901,5.05029386,2624.3,2624.2,7.97904875]
[1724305403168,7.03098284,2624.3,2624.2,4.16836875]
[1724305403473,4.7276,2624.2,2624.0,4.16856169]
[1724305403680,5.92396663,2624.1,2624.0,3.81085]
[1724305403910,6.80255209,2624.1,2624.0,3.81085]
[1724305406169,4.7276,2624.0,2623.9,7.62213]
[1724305406531,4.88009788,2624.0,2623.9,3.81103]
[1724305406674,5.7198742,2624.0,2623.9,3.81103]
[1724305407613,5.7198742,2624.0,2623.9,4.16877173]
[1724305407788,5.7198742,2624.0,2623.9,3.81103]
[1724305407976,6.91624083,2624.0,2623.9,3.81103]
[1724305409412,2.58758187,2624.0,2623.8,3.81118]
[1724305409717,6.34533101,2623.9,2623.8,3.81118]
[1724305410023,5.30220228,2623.9,2623.8,3.81118]
[1724305410219,6.497676,2623.9,2623.8,3.81118]
[1724305410461,5.30220228,2623.9,2623.8,3.81118]
[1724305413758,5.30220228,2623.9,2623.7,3.81139]
[1724305414050,5.72182245,2623.8,2623.7,3.81139]
[1724305414343,5.87412556,2623.8,2623.5,3.81169]
[1724305414524,4.9877,2623.6,2623.5,3.81169]
[1724305414919,5.13976396,2623.6,2623.5,3.81169]
[1724305418457,5.7271526,2623.6,2623.5,3.81169]
[1724305419854,7.0331526,2623.6,2623.4,3.81175]
[1724305420025,7.0331526,2623.6,2623.3,3.81193]
[1724305420026,5.025,2623.5,2623.3,3.81193]
[1724305420224,5.80500149,2623.5,2623.3,3.81193]
[1724305420430,5.10085375,2623.4,2623.3,3.81193]
[1724305422254,5.10085375,2623.4,2623.0,3.81233]
[1724305422549,4.6019,2623.2,2623.1,3.81217]
[1724305422930,4.75372907,2623.2,2623.1,3.81217]
[1724305423924,4.75372907,2623.2,2623.1,7.62445]
[1724305428442,4.75372907,2623.2,2623.1,11.43673]
[1724305428882,4.6019,2623.2,2623.1,11.43673]
[1724305429245,4.75383581,2623.2,2623.1,11.43673]
[1724305429620,0.15193581,2623.2,2623.1,11.43673]
[1724305429943,4.8275,2623.4,2623.3,7.62398]
[1724305430492,4.8275,2623.4,2623.3,8.22030923]
[1724305432048,4.82663684,2623.4,2623.3,8.22030923]
[1724305432355,4.82663684,2623.4,2623.3,11.43597]
[1724305433536,4.82663684,2623.4,2623.3,7.62398]
[1724305442144,5.30930052,2623.4,2623.3,3.81199]
[1724305442756,5.44620737,2623.4,2623.3,3.81199]
[1724305443660,4.96354369,2623.4,2623.3,7.62398]
[1724305446173,4.96354369,2623.4,2623.3,3.81199]
[1724305449488,6.26954369,2623.4,2623.1,3.81214]
[1724305449790,4.8464,2623.3,2623.2,3.81213]
[1724305449955,4.8464,2623.3,2623.2,7.62426]
[1724305450159,4.98326864,2623.3,2623.2,7.62426]
[1724305462376,4.98326864,2623.3,2623.2,12.74239]
[1724305463468,4.98326864,2623.3,2623.2,7.62426]
[1724305466608,4.98326864,2623.3,2623.2,11.43639]
[1724305467109,4.98326864,2623.3,2623.2,7.62426]
[1724305467414,4.98326864,2623.3,2623.2,14.06779001]
[1724305467784,0.13686864,2623.3,2623.2,14.06779001]
[1724305468102,4.8541,2623.5,2623.4,7.62368]
[1724305470419,4.8541,2623.5,2623.4,11.43552]
[1724305470626,4.8541,2623.5,2623.4,12.74152]
[1724305472338,7.44,2623.9,2623.7,3.81141]
[1724305472339,8.63547372,2623.9,2623.7,3.81141]
[1724305472495,7.44,2623.9,2623.8,7.62252]
[1724305472834,12.36734584,2623.9,2623.8,7.62252]
[1724305473272,13.56281956,2623.9,2623.8,7.62252]
[1724305473411,6.12281956,2623.9,2623.8,7.62252]
[1724305474211,4.92734584,2623.9,2623.8,7.62252]
[1724305491581,5.5396278,2623.9,2623.8,7.62252]
[1724305492003,4.92734584,2623.9,2623.8,7.62252]
[1724305495304,4.3479,2623.8,2623.7,7.62271]
[1724305495528,5.27542458,2623.8,2623.7,7.62271]
[1724305495811,5.41271791,2623.8,2623.7,7.62271]
[1724305500392,5.41271791,2623.8,2623.7,3.81133]
[1724305500790,5.41271791,2623.8,2623.7,7.62274]
[1724305500996,4.48519333,2623.8,2623.7,7.62274]
[1724305502389,4.48519333,2623.8,2623.7,12.74015]
[1724305502991,4.48519333,2623.8,2623.7,13.09787904]
[1724305503316,4.48519333,2623.8,2623.7,12.74015]
[1724305503517,4.48519333,2623.8,2623.7,13.09785434]
[1724305504811,0.13729333,2623.8,2623.7,16.90926434]
[1724305505032,4.5418,2624.2,2623.9,3.81105]
[1724305505231,4.5418,2624.2,2624.1,7.62166]
[1724305510311,4.5418,2624.2,2624.1,12.73849]
[1724305510518,4.5418,2624.2,2624.1,13.09616523]
[1724305512331,4.5418,2624.2,2624.1,9.28533523]
[1724305512652,4.5418,2624.2,2624.1,12.73849]
[1724305512858,4.5418,2624.2,2624.1,13.09616523]
[1724305513354,4.5418,2624.2,2624.1,12.73849]
[1724305513564,4.5418,2624.2,2624.1,13.0961655]
[1724305514039,4.5418,2624.2,2624.1,11.43249]
[1724305514240,4.5418,2624.2,2624.1,7.62166]
[1724305516735,4.99598,2624.2,2624.1,7.62166]
[1724305517473,4.5418,2624.2,2624.1,7.62166]
[1724305517839,4.67969352,2624.2,2624.1,7.62166]
[1724305530310,4.67969352,2624.2,2624.1,3.81083]
[1724305531116,4.67969352,2624.2,2624.1,7.62166]
[1724305532828,4.67969352,2624.2,2624.1,11.43249]
[1724305533982,4.67969352,2624.2,2624.1,7.62166]
[1724305534209,5.14766287,2624.2,2624.1,3.81083]
[1724305534624,5.14766287,2624.2,2624.1,7.62166]
[1724305534805,5.14766287,2624.2,2624.1,3.81083]
[1724305539434,5.14766287,2624.2,2624.1,7.62166]
[1724305543605,5.14766287,2624.2,2624.1,3.81083]
[1724305544475,5.2243491,2624.2,2623.8,4.16889868]
[1724305544610,1.19615357,2624.0,2623.8,3.81125]
[1724305544804,5.54875357,2623.9,2623.8,3.81125]
[1724305545010,7.25000479,2623.9,2623.8,3.81125]
[1724305545641,7.32669102,2623.9,2623.8,3.81125]
[1724305546647,7.25000479,2623.9,2623.8,3.81125]
[1724305546805,7.25000479,2623.9,2623.4,3.81173]
[1724305546806,4.3537,2623.8,2623.4,3.81173]
[1724305547009,4.3537,2623.6,2623.4,3.81173]
[1724305547675,0.16935557,2623.5,2623.4,3.81173]
[1724305547951,4.52305557,2623.5,2623.4,3.81173]
[1724305548757,4.52305557,2623.5,2623.4,7.62357]
[1724305549956,4.52305557,2623.5,2623.4,11.43541]
[1724305550826,0.16935557,2623.5,2623.4,15.24725]
[1724305551157,4.6438,2623.8,2623.7,11.43423]
[1724305551357,4.6438,2623.8,2623.7,12.74023]
[1724305552571,4.6438,2623.8,2623.7,13.33643784]
[1724305556570,4.6438,2623.8,2623.7,8.21902784]
[1724305556756,5.10818,2623.8,2623.7,8.21902784]
[1724305556941,5.10818,2623.8,2623.7,3.81141]
[1724305558183,5.10818,2623.8,2623.6,3.81152]
[1724305558474,4.5785,2623.7,2623.6,3.81152]
[1724305559691,4.5785,2623.7,2623.5,3.81157]
[1724305559898,5.30309262,2623.6,2623.5,3.81157]
[1724305560815,5.30309262,2623.6,2623.5,7.62327]
[1724305560976,4.6792,2623.6,2623.5,7.62327]
[1724305562875,4.84278527,2623.6,2623.5,7.62327]
[1724305564574,4.84278527,2623.6,2623.3,3.81188]
[1724305564705,4.6725,2623.4,2623.3,3.81188]
[1724305564890,5.28338177,2623.4,2623.3,3.81188]
[1724305565096,5.44670842,2623.4,2623.3,3.81188]
[1724305565306,5.44670842,2623.4,2623.0,3.81241]
[1724305565522,5.52339465,2623.4,2623.0,3.81233]
[1724305565727,4.3676,2623.2,2623.1,3.81227]
[1724305565883,4.3676,2623.2,2623.1,7.62455]
[1724305566082,4.53100341,2623.2,2623.1,7.62455]
[1724305566284,4.53100341,2623.2,2622.8,1.306]
[1724305571343,4.53100341,2623.2,2622.6,1.306]
[1724305571542,0.45310034,2623.1,2622.6,1.306]
[1724305571707,0.07668623,2623.0,2622.4,1.306]
[1724305572022,0.74580825,2623.0,2622.4,1.306]
[1724305572706,4.5368,2622.9,2621.9,0.3815]
[1724305572914,4.5368,2622.9,2622.3,1.306]
[1724305573118,4.7565,2622.7,2622.3,1.306]
[1724305573500,0.16273429,2622.6,2622.3,1.306]
[1724305573702,0.16273429,2622.6,2622.5,1.306]
[1724305574308,4.7565,2623.0,2622.5,1.306]
[1724305574508,4.7565,2623.0,2622.9,1.306]
[1724305575997,4.7565,2623.0,2622.7,1.306]
[1724305577941,0.162443,2622.9,2622.7,1.306]
[1724305578235,4.7565,2623.0,2622.7,1.306]
[1724305578531,4.7565,2623.0,2622.9,1.306]
[1724305585440,4.7565,2623.0,2622.5,1.306]
[1724305585747,4.7565,2623.0,2622.7,1.306]
[1724305588913,4.7565,2623.0,2622.5,1.306]
[1724305592727,4.51467961,2622.9,2622.5,1.306]
[1724305593252,4.51467961,2622.9,2622.7,1.306]
[1724305605363,4.51467961,2622.9,2622.5,1.306]
[1724305606357,4.96614757,2622.9,2622.5,1.306]
[1724305607877,4.96614757,2622.9,2622.7,1.306]
[1724305611685,4.96614757,2622.9,2622.6,1.306]
[1724305615653,4.96614757,2622.9,2622.2,0.79652213]
[1724305615849,4.397,2622.7,2622.2,2.63187072]
[1724305616057,0.15542383,2622.6,2622.4,1.306]
[1724305616294,4.397,2622.5,2622.4,1.306]
[1724305616588,4.55240258,2622.5,2622.4,1.306]
[1724305619811,4.55240258,2622.5,2622.2,1.306]
[1724305620779,5.7484488,2622.5,2621.8,0.47723597]
[1724305620977,4.7056,2622.3,2622.0,1.306]
[1724305621488,0.57484488,2622.4,2622.0,1.306]
[1724305621489,4.93419996,2622.2,2622.0,1.306]
[1724305622700,4.93419996,2622.2,2621.8,1.306]
[1724305622880,4.93419996,2622.2,2621.6,1.306]
[1724305623076,4.6774,2622.0,2621.5,0.46555062]
[1724305623279,0.15470874,2621.9,2621.5,0.46555062]
[1724305623482,4.83210874,2621.9,2621.5,0.46555062]
[1724305624500,4.83210874,2621.9,2621.6,1.306]
[1724305627190,4.83210874,2621.9,2621.8,1.306]
[1724305629721,4.83210874,2621.9,2621.5,0.46555062]
[1724305629901,4.83210874,2621.9,2621.7,1.306]
[1724305630678,4.83210874,2621.9,2621.5,1.77155062]
[1724305630879,5.31531961,2621.9,2621.5,1.77155062]
[1724305631788,5.31531961,2621.9,2621.5,0.46555062]
[1724305631990,0.07668623,2621.8,2621.5,0.46555062]
[1724305632216,1.306,2621.6,2621.5,0.46555062]
[1724305632462,5.01526,2621.6,2621.5,0.46555062]
[1724305632677,5.16952476,2621.6,2621.5,0.46555062]
[1724305632950,4.59486476,2621.6,2621.5,0.46555062]
[1724305645500,4.59486476,2621.6,2621.5,3.46555062]
[1724305646094,4.4406,2621.6,2621.5,3.46555062]
[1724305646397,4.58962216,2621.6,2621.5,3.46555062]
[1724305646782,4.58962216,2621.6,2621.5,0.46555062]
[1724305647191,4.4406,2621.6,2621.5,0.46555062]
[1724305647570,4.589632,2621.6,2621.5,0.46555062]
[1724305650410,5.0485952,2621.6,2621.5,0.46555062]
[1724305654962,4.589632,2621.6,2621.5,0.46555062]
[1724305658090,4.589632,2621.6,2621.5,3.46555062]
[1724305658295,4.4406,2621.6,2621.5,3.46555062]
[1724305658880,4.4406,2621.6,2621.5,4.01555062]
[1724305660706,4.4406,2621.6,2621.5,1.01555062]
[1724305661004,4.4406,2621.6,2621.5,1.8491379]
[1724305661181,4.4406,2621.6,2621.5,2.34165767]
[1724305661596,4.3048,2621.8,2621.5,2.34165767]
[1724305661790,4.3048,2621.8,2621.5,1.01555062]
[1724305663933,4.3048,2621.8,2621.6,1.32607187]
[1724305664251,4.3048,2621.8,2621.5,1.01555062]
[1724305664252,4.3048,2621.8,2621.7,0.23416225]
[1724305664404,4.3048,2621.8,2621.5,1.01555062]
[1724305667626,4.3048,2621.8,2621.6,1.32608225]
[1724305668800,4.3048,2621.8,2621.7,0.35797871]
[1724305669190,4.44596698,2621.8,2621.7,11.80090871]
[1724305669389,4.44596698,2621.8,2621.7,14.80090871]
[1724305670486,4.3048,2621.8,2621.7,14.44293]
[1724305670692,4.44596141,2621.8,2621.7,14.80090738]
[1724305670893,4.44596141,2621.8,2621.7,15.15888529]
[1724305671094,4.3048,2621.8,2621.7,15.51686398]
[1724305672126,4.3048,2621.8,2621.7,14.80090869]
[1724305674351,4.3048,2621.8,2621.7,14.44293]
[1724305674493,4.3048,2621.8,2621.7,14.80092131]
[1724305678495,4.3048,2621.8,2621.7,16.70555896]
[1724305681022,4.3048,2621.8,2621.7,15.75093]
[1724305681229,4.3048,2621.8,2621.7,17.46920468]
[1724305684427,4.3048,2621.8,2621.7,17.11125402]
[1724305684640,4.3048,2621.8,2621.7,17.46923402]
[1724305688154,4.3048,2621.8,2621.7,17.46923107]
[1724305690360,4.3048,2621.8,2621.7,16.34756334]
[1724305690527,4.3048,2621.8,2621.7,17.46926343]
[1724305695264,4.3048,2621.8,2621.7,17.11124976]
[1724305695561,4.3048,2621.8,2621.7,17.46922864]
[1724305696132,4.3048,2621.8,2621.7,18.04199485]
[1724305696346,4.3048,2621.8,2621.7,17.46922864]
[1724305697153,4.3048,2621.8,2621.7,18.04199485]
[1724305697340,4.3048,2621.8,2621.7,17.46922864]
[1724305697538,4.3048,2621.8,2621.7,18.04199485]
[1724305697760,4.3048,2621.8,2621.7,17.46922864]
[1724305698064,4.3048,2621.8,2621.7,18.04199485]
[1724305698568,4.3048,2621.8,2621.7,18.7953172]
[1724305698863,4.3048,2621.8,2621.7,20.51985035]
[1724305699048,4.3048,2621.8,2621.7,22.82438298]
[1724305699238,4.3048,2621.8,2621.7,23.18235763]
[1724305699439,4.3048,2621.8,2621.7,25.17145506]
[1724305700725,1.19604622,2622.4,2622.3,7.62688]
[1724305701027,1.19604622,2622.5,2622.4,7.6266]
[1724305701360,1.19604622,2622.5,2622.4,8.22322442]
[1724305701931,1.67466976,2622.5,2622.4,8.22322442]
[1724305702331,1.67466976,2622.5,2622.4,7.6266]
[1724305702546,1.67466976,2622.5,2622.4,8.22316024]
[1724305703835,5.95376976,2622.5,2622.4,8.22316024]
[1724305705259,4.75772354,2622.5,2622.4,0.59656024]
[1724305705576,4.2892,2622.4,2622.3,3.81342]
[1724305705762,6.52017352,2622.4,2622.3,3.81342]
[1724305706549,6.91909113,2622.4,2622.3,3.81342]
[1724305706876,4.92450312,2622.4,2622.3,3.81342]
[1724305707750,6.52037991,2622.4,2622.3,3.81342]
[1724305707955,4.92450312,2622.4,2622.3,3.81342]
[1724305708344,4.92450312,2622.4,2622.2,3.81357]
[1724305708546,6.58537391,2622.3,2622.2,3.81357]
[1724305708765,4.98957147,2622.3,2622.2,3.81357]
[1724305709160,4.98957147,2622.3,2622.2,4.4101893]
[1724305710055,6.18633168,2622.3,2622.2,4.4101893]
[1724305710255,4.98957147,2622.3,2622.2,4.4101893]
[1724305710465,4.98957147,2622.3,2622.2,4.41018813]
[1724305710682,4.98957147,2622.3,2622.2,4.41019015]
[1724305710848,4.98957147,2622.3,2622.2,4.41018976]
[1724305711047,6.18638609,2622.3,2622.2,3.81357]
[1724305711246,4.98957147,2622.3,2622.2,4.41018571]
[1724305711761,4.98957147,2622.3,2622.2,4.41018938]
[1724305712074,6.18647073,2622.3,2622.2,4.41018938]
[1724305712388,6.18647073,2622.3,2622.2,3.81357]
[1724305712546,6.18647073,2622.3,2622.2,4.41018268]
[1724305712547,4.98957147,2622.3,2622.2,4.41018268]
[1724305712747,5.11346431,2622.3,2622.2,4.41018268]
[1724305713090,6.31041955,2622.3,2622.2,4.41018268]
[1724305713446,5.11346431,2622.3,2622.2,4.41018268]
[1724305714794,6.70926675,2622.3,2622.2,0.59661268]
[1724305714992,2.85825232,2622.3,2622.1,7.6273]
[1724305715161,1.59596369,2622.2,2622.1,3.81365]
[1724305715477,6.08082534,2622.2,2622.1,3.81365]
[1724305716171,4.361,2622.1,2621.9,3.81401]
[1724305716372,5.6816337,2622.0,2621.9,7.62804]
[1724305716580,4.48468276,2622.0,2621.9,12.75006]
[1724305719160,4.361,2622.0,2621.9,12.75006]
[1724305719365,4.48465113,2622.0,2621.9,12.75006]
[1724305721571,4.48465113,2622.0,2621.9,8.93604]
[1724305731993,4.48465113,2622.0,2621.9,8.93469569]
[1724305733165,4.48465113,2622.0,2621.9,7.62669569]
[1724305738469,4.48465113,2622.0,2621.9,8.10401577]
[1724305739273,4.48465113,2622.0,2621.9,7.62669569]
[1724305739491,4.48465113,2622.0,2621.9,8.1040185]
[1724305740985,5.68160207,2622.0,2621.9,8.1040185]
[1724305741714,5.68160207,2622.0,2621.9,7.62669569]
[1724305741904,5.68160207,2622.0,2621.7,1.308]
[1724305741905,2.44718776,2622.0,2621.7,3.81417]
[1724305742110,1.19678049,2621.8,2621.7,3.81417]
[1724305742351,5.74508049,2621.8,2621.7,3.81417]
[1724305742839,5.8685836,2621.8,2621.7,3.81417]
[1724305743034,6.88728514,2621.8,2621.7,3.81417]
[1724305743323,4.6716,2621.7,2621.5,4.28427045]
[1724305743632,2.8145982,2621.8,2621.5,0.46968045]
[1724305743633,6.53811409,2621.6,2621.5,0.46968045]
[1724305743800,4.9428252,2621.6,2621.5,0.46968045]
[1724305743976,6.13927705,2621.6,2621.5,0.46968045]
[1724305745506,4.9428252,2621.6,2621.5,0.46968045]
[1724305745685,6.13828526,2621.6,2621.5,0.46968045]
[1724305745884,7.54066197,2621.6,2621.5,0.46968045]
[1724305746617,6.34520191,2621.6,2621.5,0.46968045]
[1724305752432,11.4318082,2621.6,2621.5,0.46968045]
[1724305752671,10.23634814,2621.6,2621.5,0.46968045]
[1724305752877,11.83163703,2621.6,2621.5,0.46968045]
[1724305753502,15.64609703,2621.6,2621.5,0.46968045]
[1724305753842,3.81519,2621.1,2621.0,0.125617]
[1724305754139,11.47259955,2621.1,2621.0,0.125617]
[1724305754412,5.95145832,2621.1,2621.0,3.940947]
[1724305754594,4.75742951,2621.1,2621.0,3.940947]
[1724305755301,5.23317246,2621.1,2621.0,0.125617]
[1724305758740,4.75742951,2621.1,2621.0,0.125617]
[1724305758883,4.75742951,2621.1,2621.0,3.940947]
[1724305761435,4.75742951,2621.1,2621.0,0.125617]
[1724305761916,4.75742951,2621.1,2621.0,3.940947]
[1724305762611,4.75742951,2621.1,2621.0,0.125617]
[1724305763587,4.75742951,2621.1,2621.0,3.940947]
[1724305764802,4.75742951,2621.1,2621.0,7.756277]
[1724305765004,4.75742951,2621.1,2621.0,9.064277]
[1724305765393,4.75742951,2621.1,2621.0,0.125617]
[1724305766996,4.75742951,2621.1,2621.0,3.940947]
[1724305767905,4.75742951,2621.1,2621.0,0.125617]
[1724305773710,4.75742951,2621.1,2621.0,3.940947]
[1724305775537,5.23317246,2621.1,2621.0,3.940947]
[1724305778035,5.23317246,2621.1,2621.0,4.5378285]
[1724305778203,4.75742951,2621.1,2621.0,3.940947]
[1724305778404,4.75742951,2621.1,2621.0,4.5378253]
[1724305784351,4.75742951,2621.1,2621.0,3.940947]
[1724305784618,4.75742951,2621.1,2621.0,4.53782354]
[1724305787647,4.75742951,2621.1,2621.0,3.940947]
[1724305787966,4.75742951,2621.1,2621.0,4.53783174]
[1724305790739,4.75742951,2621.1,2621.0,8.35316174]
[1724305790940,4.75742951,2621.1,2621.0,8.35311946]
[1724305794143,4.75742951,2621.1,2621.0,7.756277]
[1724305794477,4.75742951,2621.1,2621.0,8.35314495]
[1724305794869,4.85442951,2621.1,2621.0,8.35314495]
[1724305795252,4.85442951,2621.1,2621.0,8.71125559]
[1724305795438,4.85442951,2621.1,2621.0,8.35314495]
[1724305796261,4.85442951,2621.1,2621.0,8.71126046]
[1724305796675,4.85442951,2621.1,2621.0,8.35314495]
[1724305797285,4.85442951,2621.1,2621.0,8.71126286]
[1724305799094,5.64133197,2621.1,2621.0,1.08060286]
[1724305799270,6.75867455,2621.1,2621.0,0.72248495]
[1724305800587,6.76272108,2621.1,2621.0,0.72248495]
[1724305800785,6.76272108,2621.1,2621.0,1.08062039]
[1724305800971,5.56464574,2621.1,2621.0,0.72248495]
[1724305801689,6.76275497,2621.1,2621.0,1.0806196]
[1724305801886,6.76275497,2621.1,2621.0,4.8959496]
[1724305802094,6.05253874,2621.1,2621.0,8.7112796]
[1724305802290,6.05253874,2621.1,2621.0,9.18877981]
[1724305803399,6.05253874,2621.1,2621.0,9.18877609]
[1724305805213,6.05292313,2621.1,2621.0,9.18877609]
[1724305805707,0.12252951,2621.1,2621.0,13.00410609]
[1724305805870,0.12252951,2621.1,2621.0,19.32034147]
[1724305806068,1.19849362,2621.5,2621.4,7.6295]
[1724305806268,1.31269263,2621.5,2621.4,9.06199909]
[1724305806612,0.11419901,2621.5,2621.4,10.6295]
[1724305806809,0.11419901,2621.5,2621.4,17.2026506]
[1724305806972,0.11419901,2621.5,2621.4,19.19199171]
[1724305807173,5.85849362,2621.9,2621.8,3.81417]
[1724305807399,5.85849362,2621.9,2621.8,9.41369499]
[1724305807596,4.66,2621.9,2621.8,9.41369499]
[1724305808286,4.66,2621.9,2621.8,9.7716852]
[1724305808492,4.66,2621.9,2621.8,9.41369499]
[1724305810313,4.66,2621.9,2621.8,8.93634]
[1724305811986,5.126,2621.9,2621.8,3.81417]
[1724305812187,5.126,2621.9,2621.6,3.81432]
[1724305812396,5.20268623,2621.9,2621.6,3.81438]
[1724305812710,4.633,2621.7,2621.6,3.81438]
[1724305817231,4.633,2621.7,2621.5,3.81451]
[1724305817633,4.633,2621.7,2621.4,1.308]
[1724305817634,4.70968623,2621.7,2621.4,5.12274]
[1724305817873,0.64593842,2621.6,2621.4,5.12274]
[1724305818035,2.4503,2621.5,2621.4,5.12274]
[1724305818399,2.56123116,2621.5,2621.4,5.12274]
[1724305819600,2.56123116,2621.5,2621.4,8.93749]
[1724305820996,2.56123116,2621.5,2621.4,7.62949]
[1724305821309,2.56123116,2621.5,2621.4,3.81474]
[1724305821516,2.81735428,2621.5,2621.4,3.81474]
[1724305824343,2.56123116,2621.5,2621.4,7.62949]
[1724305825136,2.56123116,2621.5,2621.4,3.81474]
[1724305834925,2.56123116,2621.5,2621.1,3.81518]
[1724305835252,2.285,2621.3,2621.1,3.81518]
[1724305835619,0.09979486,2621.2,2621.1,3.81518]
[1724305835851,2.48199486,2621.2,2621.1,3.81518]
[1724305837244,2.48199486,2621.2,2621.1,7.63037]
[1724305839564,2.48199486,2621.2,2621.1,3.81518]
[1724305846658,2.75580666,2621.2,2621.1,3.81518]
[1724305847415,2.48199486,2621.2,2621.1,3.81518]
[1724305850413,2.48199486,2621.2,2621.0,3.940947]
[1724305850792,2.48199486,2621.2,2621.0,5.248947]
[1724305850999,2.48199486,2621.2,2621.0,9.064277]
[1724305851403,2.48199486,2621.2,2621.0,5.248947]
[1724305851720,2.76347528,2621.2,2621.0,5.248947]
[1724305852119,2.76347528,2621.2,2621.0,9.064107]
[1724305852330,2.76347528,2621.2,2621.0,1.433617]
[1724305852477,2.32958623,2621.1,2621.0,0.125617]
[1724305852682,2.82007336,2621.1,2621.0,0.125617]
[1724305853885,8.22720669,2621.1,2621.0,0.125617]
[1724305854219,6.55857713,2621.1,2621.0,0.125617]
[1724305854686,8.55307341,2621.1,2621.0,0.125617]
[1724305857491,7.63096,2620.9,2620.8,0.00191]
[1724305857711,13.87164125,2620.9,2620.8,0.00191]
[1724305857912,2.54084298,2620.9,2620.8,0.00191]
[1724305858087,13.47302345,2620.9,2620.8,0.00191]
[1724305858690,9.65754345,2620.9,2620.8,0.00191]
[1724305858903,11.10196738,2620.9,2620.8,0.00191]
[1724305859424,14.91593225,2620.9,2620.8,0.00191]
[1724305859793,12.92422691,2620.9,2620.8,0.00191]
[1724305859993,14.91595118,2620.9,2620.8,0.00191]
[1724305860716,12.92422691,2620.9,2620.8,0.00191]